[Event "Oberliga Wuerttemberg 2023-24"]
[Site "Wuerttemberg"]
[Date "2024.04.14"]
[Round "9.15"]
[White "Goldinov, Daniel"]
[Black "Martaler, Jewgeni"]
[Result "1-0"]
[ECO "A80"]
[WhiteElo "1910"]
[BlackElo "2198"]
[Annotator "TA"]
[PlyCount "87"]
[EventDate "2024.03.14"]
[EventType "team-tourn"]
[EventCountry "GER"]
[SourceTitle "playchess.com"]
[Source "ChessBase"]
[SourceQuality "1"]
[TimeControl "40/5400+30:1800+30"]

{[%evp 9,87,-31,-7,-54,0,-210,-100,-120,-103,-107,-71,-80,-33,-110,-100,-120,-110,-121,-94,-161,-167,-250,-194,-217,-224,-196,-201,-200,-195,-246,-238,-276,-271,-318,-313,-283,-209,-237,-243,-262,-127,-127,-128,-126,-123,-123,-125,-131,-122,-122,-122,-257,-259,-262,-259,-245,-129,-193,-207,-216,-224,-223,-136,-154,-110,-276,-186,-348,-12,-114,0,-336,16,16,203,203,972,939,2070,1876]} 1. d4 {[%emt 0:00:24]} f5 {[%emt 0:00:19]} 2. Nc3 {[%emt 0:00:21]} Nf6 {[%emt 0:00:14]} 3. Bf4 {[%emt 0:00:06]} e6 {[%emt 0:03:30]} 4. g4 {[%emt 0:04:35]} Nxg4 {[%emt 0:06:58]} 5. e4 {[%emt 0:00:32]} Bb4 {[%emt 0:03:19]} 6. Qd3 {[%emt 0:06:39]} (6. exf5 $11 {feels stronger.} Bxc3+ 7. bxc3) 6... O-O {[%emt 0:03:57]} (6... Nc6 $15 7. exf5 O-O) 7. h3 $2 {[%emt 0:13:18]} (7. e5 $1 $11) 7... Nf6 {[%emt 0:22:55]} (7... fxe4 $19 8. Qg3 Qf6) 8. exf5 $17 {[%emt 0:08:58] Black is better.} Nd5 {[%emt 0:04:12]} 9. Bd2 {[%emt 0:02:15]} Bxc3 {[%emt 0:00:35]} (9... Rxf5 10. Nge2 $15) 10. bxc3 {[%emt 0:01:55]} Rxf5 {[%emt 0:00:15]} (10... Qf6 $17) 11. c4 {[%emt 0:07:26]} (11. Qg3 $1 $15) 11... Nf4 $36 {[%emt 0:00:58][%mdl 2048] Black is really pushing.} 12. Qg3 {[%emt 0:02:35]} Qf8 {[%emt 0:01:48]} 13. Ne2 {[%emt 0:09:11]} Nh5 {[%emt 0:01:40] Excellent horsemanship.} 14. Qg4 {[%emt 0:09:34]} (14. Qh4 $17) 14... Nc6 $19 {[%emt 0:07:22][%cal Ob7b6]} 15. c3 {[%emt 0:11:34]} (15. Qh4 {might work better.}) 15... d6 {[%emt 0:02:56][%cal Oe6e5]} 16. Ng3 {[%emt 0:02:21]} Nxg3 {[%emt 0:07:55]} 17. Qxg3 {[%emt 0:00:09]} e5 {[%emt 0:00:48]} 18. d5 {[%emt 0:08:38]} Ne7 {[%emt 0:00:53]} 19. Bg2 {[%emt 0:02:44]} (19. h4 {was necessary.}) 19... Rf6 {[%emt 0:01:56]} 20. O-O-O {[%emt 0:01:31]} Bf5 {[%emt 0:00:46] Hoping for ...Rg6.} 21. Rdg1 {[%emt 0:02:31]} Rg6 {[%emt 0:02:15]} 22. Qe3 {[%emt 0:00:54]} c6 {[%emt 0:04:30]} 23. h4 {[%emt 0:01:22]} cxd5 {[%emt 0:01:18]} 24. h5 {[%emt 0:01:09] [#]} Rxg2 {[%emt 0:14:52]} 25. Rxg2 $17 {[%emt 0:00:18]} Be4 {[%emt 0:00:04]} ({But not} 25... dxc4 $6 26. Rhg1 g6 27. hxg6 Bxg6 28. Qe4 $11) 26. f3 {[%emt 0:01:00]} Qxf3 {[%emt 0:01:04]} 27. Rhg1 {[%emt 0:00:14]} Qxe3 {[%emt 0:03:21]} (27... Qxh5 $2 {is the wrong capture.} 28. Rxg7+ Kf8 29. Qf2+ Bf3 30. c5 $18) (27... Qxg2 $2 {perishes.} 28. Rxg2 Nf5 (28... Bxg2 $2 29. Qg5 $18) 29. Qg5 $18) 28. Rxg7+ {[%emt 0:00:11]} Kh8 {[%emt 0:00:02]} 29. Bxe3 {[%emt 0:00:30]} Nf5 {[%emt 0:00:04]} 30. Rxb7 {[%emt 0:01:47]} (30. R7g3 $17) 30... Nxe3 $19 {[%emt 0:00:31]} 31. cxd5 {[%emt 0:00:33]} Bxd5 {[%emt 0:01:37]} 32. Rd7 {[%emt 0:00:36]} Nc4 {[%emt 0:00:19]} (32... Bxa2 $19 {Strongly threatening ...Nf5.} 33. Rg5 Bg8 34. Rxd6 a5) 33. Rgg7 {[%emt 0:00:33]} (33. Rc7 $17) 33... Be4 {[%emt 0:00:24]} 34. h6 {[%emt 0:00:09]} a5 {[%emt 0:01:25]} 35. a4 {[%emt 0:00:43]} Bg6 {[%emt 0:00:36] ...Rf8 would now be deadly.} 36. Rc7 {[%emt 0:00:30]} d5 {[%emt 0:00:25]} 37. Rc5 $2 {[%emt 0:00:39]} (37. Rgd7 $17) 37... Be4 {[%emt 0:01:15]} 38. Rgc7 $2 {[%emt 0:00:14]} (38. Re7) 38... Kg8 $2 {[%emt 0:00:34]} (38... Rg8 $19 {[%cal Rg8g1]} 39. Rxc4 dxc4 40. Rxc4 Bh1) 39. Rg7+ $11 {[%emt 0:00:29] [#]} Kh8 $2 {[%emt 0:00:39]} (39... Kf8 $1 $17 40. Rc6 Rb8) 40. Rgc7 $1 $19 {[%emt 0:00:11]} Bf5 {[%emt 0:01:04] Inhibits Rc8+.} ({Black should try} 40... Rg8 $19 {[%cal Rg8g1]} 41. Rxc4 dxc4 42. Rxc4 Bh1) 41. Rxd5 $11 {[%emt 0:08:56]} Nb6 $2 {[%emt 0:11:18]} (41... Be6 $11 {and Black stays safe.} 42. Rdc5 Nb6) 42. Rxe5 $18 {[%emt 0:02:27]} Bg6 {[%emt 0:00:02]} (42... Bd7 43. c4 Bh3) 43. Rb5 {[%emt 0:02:20]} Nxa4 {[%emt 0:01:11] [#]} 44. Rxa5 $3 {[%emt 0:01:09][%mdl 512] Weighted Error Value: White=0.37/Black=0.58.  Loses game:     	White=2     	Black=1      Missed win:     	---       	Black=2      Mistake:       	White=7     	Black=7      Inaccurate:     	---       	Black=4      OK:         	White=10    	Black=11     Best:        	White=5     	Black=4      Strong:       	White=1     	---} 1-0

[Event "Oberliga Wuerttemberg 2023-24"]
[Site "Wuerttemberg"]
[Date "2024.04.14"]
[Round "9.16"]
[White "Schuh, Bernd-Martin"]
[Black "Reus, Nicholas"]
[Result "1/2-1/2"]
[ECO "A11"]
[WhiteElo "1976"]
[BlackElo "1880"]
[Annotator "NA RC"]
[PlyCount "68"]
[EventDate "2024.03.14"]
[EventType "team-tourn"]
[EventCountry "GER"]
[SourceTitle "playchess.com"]
[Source "ChessBase"]
[SourceQuality "1"]
[TimeControl "40/5400+30:1800+30"]

1. Nf3 {[%emt 0:00:05]} d5 {[%emt 0:00:06]} 2. g3 {[%emt 0:00:08]} Nf6 {[%emt 0:00:06]} 3. c4 {[%emt 0:00:18]} c6 {[%emt 0:00:07]} 4. b3 {[%emt 0:00:11]} g6 {[%emt 0:00:26]} 5. Bb2 {[%emt 0:00:15]} Bg7 {[%emt 0:00:12]} 6. Bg2 {[%emt 0:01:09]} O-O {[%emt 0:00:17]} 7. O-O {[%emt 0:00:22]} a5 {[%emt 0:00:42]} 8. d3 {[%emt 0:02:48]} Re8 {[%emt 0:01:17]} 9. Qc2 {[%emt 0:00:23]} Nbd7 {[%emt 0:12:09]} 10. Nc3 {[%emt 0:01:06]} e5 {[%emt 0:04:41]} 11. cxd5 {[%emt 0:03:35]} cxd5 {[%emt 0:08:59]} 12. Nd2 {[%emt 0:07:07]} Nb8 {[%emt 0:02:53]} 13. e4 {[%emt 0:01:53]} Nc6 {[%emt 0:08:33]} 14. Nxd5 {[%emt 0:01:59]} Nxd5 {[%emt 0:00:15]} 15. exd5 {[%emt 0:00:14]} Nb4 {[%emt 0:00:04]} 16. Qb1 {[%emt 0:02:28]} Nxd5 {[%emt 0:06:15]} 17. a3 {[%emt 0:00:59]} Ra6 {[%emt 0:03:48]} 18. Re1 {[%emt 0:02:44]} Bf5 {[%emt 0:03:02]} 19. Ne4 {[%emt 0:11:06]} Rb6 {[%emt 0:08:20]} 20. Qd1 {[%emt 0:01:54]} Nc7 {[%emt 0:02:00]} 21. Rc1 {[%emt 0:02:18]} Ne6 {[%emt 0:00:55]} 22. Bc3 {[%emt 0:00:30]} Ra6 {[%emt 0:01:21]} 23. b4 {[%emt 0:04:53]} axb4 {[%emt 0:02:24]} 24. axb4 {[%emt 0:00:13]} Qb6 {[%emt 0:01:26]} 25. Nc5 {[%emt 0:03:15]} Nxc5 {[%emt 0:03:51]} 26. bxc5 {[%emt 0:00:11]} Qxc5 {[%emt 0:16:35]} 27. Bxe5 {[%emt 0:03:20]} Qa5 {[%emt 0:00:18]} 28. Bc3 {[%emt 0:00:51]} Rxe1+ {[%emt 0:00:32]} 29. Bxe1 {[%emt 0:00:34]} Qd8 {[%emt 0:00:53]} 30. Bxb7 {[%emt 0:02:59]} Rd6 {[%emt 0:01:00]} 31. Qa4 {[%emt 0:04:06]} Rd4 {[%emt 0:28:45]} 32. Qa8 {[%emt 0:21:36]} Rxd3 {[%emt 0:00:00]} 33. Qxd8+ {[%emt 0:00:41]} Rxd8 {[%emt 0:00:00]} 34. Kg2 {[%emt 0:00:37]} Bf6 {[%emt 0:00:00]} 1/2-1/2

[Event "Oberliga Wuerttemberg 2023-24"]
[Site "Wuerttemberg"]
[Date "2024.04.14"]
[Round "9.17"]
[White "Nevednichy, Vladislav"]
[Black "Braun, Georg"]
[Result "1-0"]
[ECO "B12"]
[WhiteElo "2457"]
[BlackElo "2393"]
[Annotator "TA"]
[PlyCount "45"]
[EventDate "2024.03.14"]
[EventType "team-tourn"]
[EventCountry "GER"]
[SourceTitle "playchess.com"]
[Source "ChessBase"]
[SourceQuality "1"]
[TimeControl "40/5400+30:1800+30"]

{[%evp 9,45,21,38,33,28,31,32,46,83,85,96,78,124,64,68,63,233,236,224,242,236,229,235,226,310,260,312,279,268,270,302,324,367,364,384,378,427,421]} 1. e4 {[%emt 0:00:04]} c6 {[%emt 0:00:13]} 2. d4 {[%emt 0:00:12]} d5 {[%emt 0:00:08]} 3. e5 {[%emt 0:00:06]} Bf5 {[%emt 0:00:20]} 4. h4 {[%emt 0:00:15]} Qc8 {[%emt 0:03:32]} 5. c4 {[%emt 0:03:11]} e6 {[%emt 0:02:43]} 6. Nc3 {[%emt 0:02:10]} h6 {[%emt 0:01:32]} 7. Nge2 {[%emt 0:03:07]} dxc4 {[%emt 0:06:50]} 8. Ng3 {[%emt 0:00:47][%cal Og3f5] aiming for Nxf5! White is slightly better.} b5 {[%emt 0:00:20]} 9. a4 {[%emt 0:02:40][%mdl 1024] [#] Hoping for Nxf5. White has strong compensation. White is more active.} Bb4 {[%emt 0:02:26]} 10. Qf3 {[%emt 0:05:29] Strongly threatening Nxf5.} Nd7 {[%emt 0:01:43]} (10... Ne7 $142) 11. Nh5 {[%emt 0:09:10]} (11. Nxf5 $16 exf5 12. axb5 (12. Qxf5 c5 $16)) 11... g6 $14 {[%emt 0:15:34]} 12. g4 $36 {[%emt 0:01:04][%mdl 2048] White fights for an advantage.} Ne7 {[%emt 0:05:05] [#] Loses the game.} (12... Bd3 $14 13. Bxd3 cxd3) 13. Nf6+ $18 {[%emt 0:02:06]} Nxf6 {[%emt 0:00:09]} 14. exf6 {[%emt 0:00:14]} Bxg4 {[%emt 0:03:14]} 15. Qxg4 {[%emt 0:00:12]} Nd5 {[%emt 0:00:04]} 16. Qf3 {[%emt 0:01:57]} Qd8 {[%emt 0:02:06]} 17. Bg2 {[%emt 0:00:06]} a5 {[%emt 0:01:49]} 18. O-O {[%emt 0:04:26]} Bxc3 {[%emt 0:00:09]} 19. bxc3 {[%emt 0:00:03] Black must now prevent axb5.} Kd7 {[%emt 0:03:03]} 20. Bd2 {[%emt 0:04:04]} Qxf6 {[%emt 0:06:21]} 21. Qxf6 {[%emt 0:00:19]} Nxf6 {[%emt 0:00:03]} 22. axb5 {[%emt 0:01:41]} cxb5 {[%emt 0:00:07]} 23. Rfb1 {[%emt 0:00:06] Weighted Error Value: White=0.15 (very precise) /Black=0.35.  Loses game:     	---       	Black=1      Mistake:       	White=1     	Black=1      Inaccurate:     	---       	Black=2      OK:         	White=8     	Black=6      Best:        	White=1     	Black=1} 1-0

[Event "Oberliga Wuerttemberg 2023-24"]
[Site "Wuerttemberg"]
[Date "2024.04.14"]
[Round "9.18"]
[White "Waffenschmidt, Lars"]
[Black "Manoeuvre, Antoine"]
[Result "1/2-1/2"]
[ECO "C01"]
[WhiteElo "2290"]
[BlackElo "2317"]
[Annotator "TA"]
[PlyCount "29"]
[EventDate "2024.03.14"]
[EventType "team-tourn"]
[EventCountry "GER"]
[SourceTitle "playchess.com"]
[Source "ChessBase"]
[SourceQuality "1"]
[TimeControl "40/5400+30:1800+30"]

{[%evp 14,29,10,7,16,0,0,0,12,14,31,0,0,0,0,-27,-20,-29]} 1. e4 {[%emt 0:00:05]} e6 {[%emt 0:00:08]} 2. d4 {[%emt 0:00:06]} d5 {[%emt 0:00:05]} 3. exd5 {[%emt 0:00:09]} exd5 {[%emt 0:00:08]} 4. Nf3 {[%emt 0:00:19]} Nf6 {[%emt 0:03:19]} 5. Bd3 {[%emt 0:00:35]} Bd6 {[%emt 0:00:05]} 6. O-O {[%emt 0:00:34]} O-O {[%emt 0:00:04]} 7. h3 {[%emt 0:00:53]} h6 {[%emt 0:04:28]} 8. Nc3 {[%emt 0:03:21]} a6 {[%emt 0:07:37]} 9. Re1 {[%emt 0:03:32]} Nc6 {[%emt 0:03:47]} 10. a3 {[%emt 0:04:04]} Re8 {[%emt 0:02:20]} 11. Rxe8+ {[%emt 0:04:52]} Qxe8 {[%emt 0:00:09]} 12. Be3 {[%emt 0:01:18]} Ne7 {[%emt 0:18:22]} 13. Nh4 {[%emt 0:00:55]} g5 {[%emt 0:10:02]} 14. Qf3 {[%emt 0:15:15]} Kg7 {[%emt 0:03:40]} 15. Nf5+ {[%emt 0:11:39] Not much happened in this game.   Weighted Error Value: White=0.08 (flawless) /Black=0.02 (flawless) .  Inaccurate:     	White=2     	---        OK:         	White=4     	Black=3} 1/2-1/2

[Event "Oberliga Wuerttemberg 2023-24"]
[Site "Wuerttemberg"]
[Date "2024.04.14"]
[Round "9.19"]
[White "Svana, Peter"]
[Black "Hartmann, Martin"]
[Result "1-0"]
[ECO "A61"]
[WhiteElo "2256"]
[BlackElo "2158"]
[Annotator "TA"]
[PlyCount "105"]
[EventDate "2024.03.14"]
[EventType "team-tourn"]
[EventCountry "GER"]
[SourceTitle "playchess.com"]
[Source "ChessBase"]
[SourceQuality "1"]
[TimeControl "40/5400+30:1800+30"]

{[%evp 13,105,50,56,10,22,0,8,10,63,62,66,68,57,43,55,39,43,41,53,64,96,100,108,104,88,80,83,100,279,278,255,259,329,309,310,301,364,368,371,377,366,329,363,372,357,361,459,410,517,509,539,545,549,550,617,618,634,635,679,680,707,679,850,821,1208,1077,2038,2098,29984,29985,29981,29982,29986,29987,29988,29989,29989,29990,29991,29992,29992,29993,29993,29990,29990,29991,29991,29992,29992,29991,29993,29991,29991,29992]} 1. d4 {[%emt 0:00:03]} Nf6 {[%emt 0:00:07]} 2. c4 {[%emt 0:00:06]} e6 {[%emt 0:00:05]} 3. Nc3 {[%emt 0:00:07]} c5 {[%emt 0:00:07]} 4. d5 {[%emt 0:00:39]} exd5 {[%emt 0:00:05]} 5. cxd5 {[%emt 0:00:08]} d6 {[%emt 0:00:04]} 6. Nf3 {[%emt 0:01:46][%cal Bg1f3,Bf3d2,Bd2c4][%mdl 32]} g6 {[%emt 0:00:29]} 7. Bf4 {[%emt 0:02:37]} Bg7 {[%emt 0:04:04]} 8. e3 {[%emt 0:00:22]} (8. e4 $14 {should be considered.}) 8... O-O $11 {[%emt 0:01:17]} 9. Be2 {[%emt 0:00:04]} Na6 {[%emt 0:04:56]} 10. O-O {[%emt 0:00:40] The position is equal.} Re8 {[%emt 0:01:50]} (10... Nc7 $11) 11. Nd2 $14 {[%emt 0:01:31]} Nc7 {[%emt 0:01:29]} 12. Nc4 {[%emt 0:00:19]} Bf8 {[%emt 0:00:06]} 13. a4 {[%emt 0:00:24]} b6 {[%emt 0:01:16]} 14. Re1 {[%emt 0:03:25]} Ba6 {[%emt 0:04:15]} 15. b3 {[%emt 0:03:11][%cal Bb2b3,Bb3c4][%mdl 32]} Qd7 {[%emt 0:17:44]} 16. Bf3 {[%emt 0:05:01]} Rad8 {[%emt 0:03:18]} 17. e4 {[%emt 0:01:52]} Bxc4 {[%emt 0:01:54]} 18. bxc4 {[%emt 0:00:06]} Bg7 {[%emt 0:01:37]} 19. Ra3 {[%emt 0:07:04][%cal Ba1a3,Ba3b3,Bb3b6,Bb6f6][%mdl 32]} Qe7 {[%emt 0:02:35]} 20. Nb5 {[%emt 0:02:06][%cal Bc3b5,Bb5a7,Ba7c6][%mdl 32] White is more active.} a6 {[%emt 0:03:33] Loses the game.} (20... Nxb5 $16 21. axb5 h5) 21. Na7 $18 {[%emt 0:02:14]} Nd7 {[%emt 0:12:50]} 22. Nc6 {[%emt 0:02:26][%csl LRd8,LRe7] Against Nb8} Qf6 {[%emt 0:00:09]} 23. Qc1 {[%emt 0:10:48][%cal Of4g5] Hoping for Bg5!} Ra8 {[%emt 0:09:04]} 24. Rb3 {[%emt 0:00:47] Strongly threatening Bg5. Black is weak on the light squares} Bf8 {[%emt 0:10:26][%cal Bg7f8,Bf8d6,Bd6e5,Be5d4][%mdl 32]} 25. Bg4 {[%emt 0:01:11]} Ne5 {[%emt 0:01:21]} 26. Bxe5 {[%emt 0:01:04]} dxe5 {[%emt 0:01:18]} 27. Rxb6 {[%emt 0:00:21]} Bd6 {[%emt 0:02:47]} 28. Bd7 {[%emt 0:02:31]} Rf8 {[%emt 0:00:55] [#]} 29. f4 $1 {[%emt 0:00:14][%mdl 512]} Ne8 {[%emt 0:04:20][%cal Bc7e8,Be8f6,Bf6h5,Bh5g7][%mdl 32]} (29... Qg7 30. Rb7) 30. Nxe5 {[%emt 0:05:17]} Bxe5 {[%emt 0:02:16]} 31. Rxf6 {[%emt 0:00:23]} Bd4+ {[%emt 0:00:05]} 32. Kh1 {[%emt 0:00:40]} Nxf6 {[%emt 0:00:05]} 33. Bh3 {[%emt 0:00:14]} Rab8 {[%emt 0:02:25]} 34. e5 {[%emt 0:00:28]} Nh5 {[%emt 0:00:20]} 35. f5 {[%emt 0:02:05][%cal Bf4f5,Bf5f6][%mdl 32]} Ng7 {[%emt 0:02:40]} 36. f6 {[%emt 0:00:55]} Ne8 {[%emt 0:00:08]} 37. Bd7 {[%emt 0:02:28] Threatens to win with Bxe8.} Kh8 {[%emt 0:00:10]} 38. g3 {[%emt 0:01:36]} Rg8 {[%emt 0:00:30]} 39. Qg5 {[%emt 0:01:34]} Rb7 {[%emt 0:01:40]} 40. Bxe8 {[%emt 0:00:46]} Rxe8 {[%emt 0:00:05]} 41. Qh6 {[%emt 0:30:08][%csl Gf6][%cal Rh6g7] White mates.} Rg8 {[%emt 0:30:05]} 42. Re4 {[%emt 0:00:11]} g5 {[%emt 0:02:38]} 43. e6 {[%emt 0:03:37]} Rb1+ {[%emt 0:00:24]} 44. Kg2 {[%emt 0:00:36]} Rb2+ {[%emt 0:00:12]} 45. Kh3 {[%emt 0:00:47]} Bg1 {[%emt 0:00:12]} 46. Kg4 {[%emt 0:00:14]} (46. exf7 $2 {leads to mate.} g4+ 47. Rxg4 Rxh2#) 46... Rxh2 {[%emt 0:00:21] [#]} 47. Qxh2 $3 {[%emt 0:00:17][%mdl 512]} Bxh2 {[%emt 0:00:04] KRB-KR} 48. e7 {[%emt 0:00:04]} h5+ {[%emt 0:00:46]} 49. Kxh5 {[%emt 0:00:19]} Bxg3 {[%emt 0:01:11]} 50. e8=Q {[%emt 0:00:21]} Rxe8 {[%emt 0:00:05]} 51. Rxe8+ {[%emt 0:00:16]} Kh7 {[%emt 0:00:04]} 52. Kxg5 {[%emt 0:00:13]} a5 {[%emt 0:00:09]} 53. Rf8 {[%emt 0:01:25] Weighted Error Value: White=0.08 (flawless) /Black=0.37.  Loses game:     	---       	Black=1      Mistake:       	---       	Black=1      Inaccurate:     	---       	Black=1      OK:         	White=14    	Black=12     Best:        	White=2     	---} 1-0

[Event "Oberliga Wuerttemberg 2023-24"]
[Site "Wuerttemberg"]
[Date "2024.04.14"]
[Round "9.20"]
[White "Latzke, Boris"]
[Black "Danada, Tomas"]
[Result "0-1"]
[ECO "D31"]
[WhiteElo "2175"]
[BlackElo "2195"]
[Annotator "TA"]
[PlyCount "52"]
[EventDate "2024.03.14"]
[EventType "team-tourn"]
[EventCountry "GER"]
[SourceTitle "playchess.com"]
[Source "ChessBase"]
[SourceQuality "1"]
[TimeControl "40/5400+30:1800+30"]

{[%evp 20,52,-45,-84,-53,-102,-98,-119,-133,-194,-198,-218,-196,-258,-257,-504,-493,-762,-766,-795,-834,-1002,-987,-989,-991,-1416,-1416,-3088,-3079,-2986,-3068,-29981,-2032,-29982,-1912]} 1. d4 {[%emt 0:00:08]} Nf6 {[%emt 0:00:33]} 2. c4 {[%emt 0:00:10]} e6 {[%emt 0:00:07]} 3. Nf3 {[%emt 0:00:14]} d5 {[%emt 0:00:06]} 4. Nc3 {[%emt 0:00:27]} Bb4 {[%emt 0:00:53]} 5. Bg5 {[%emt 0:01:31]} dxc4 {[%emt 0:00:34]} 6. e3 {[%emt 0:03:47]} b5 {[%emt 0:00:14]} 7. Be2 {[%emt 0:01:51]} Bb7 {[%emt 0:01:07]} 8. O-O {[%emt 0:00:35]} a6 {[%emt 0:00:27]} 9. a4 {[%emt 0:01:59]} c6 {[%emt 0:07:04]} 10. Qc2 {[%emt 0:07:22]} Nbd7 {[%emt 0:01:48]} 11. e4 {[%emt 0:03:34]} h6 {[%emt 0:01:42]} 12. Bh4 {[%emt 0:03:24]} (12. Bd2 $1 $15 {is more appropriate.}) 12... Qb6 $17 {[%emt 0:01:08]} 13. e5 {[%emt 0:02:20]} Nd5 {[%emt 0:02:36] Black is better.} 14. Ne4 {[%emt 0:07:44] [#]} (14. Rfd1 $17) 14... O-O $1 $19 {[%emt 0:02:14]} 15. Rfd1 {[%emt 0:14:30]} c5 {[%emt 0:01:51]} 16. dxc5 {[%emt 0:23:41]} (16. Bg3 $142) 16... Nxc5 {[%emt 0:00:19]} 17. Nf6+ $2 {[%emt 0:07:06]} (17. Nxc5 {was worth a try.} Bxc5 18. Ne1) 17... gxf6 {[%emt 0:01:25]} 18. Rxd5 {[%emt 0:02:23]} (18. Qc1 $142 Kh7 (18... Nxa4 $2 19. Qxh6 $18) 19. exf6) 18... Bxd5 {[%emt 0:01:13]} 19. Qc1 {[%emt 0:03:42]} Kh7 {[%emt 0:02:10]} (19... Nxa4 $2 20. Qxh6 $18) 20. Bxf6 {[%emt 0:05:48]} Ne4 {[%emt 0:03:09]} ({Inferior is} 20... bxa4 21. Ng5+ Kg8 (21... hxg5 22. Qxg5 Rg8 23. Qh5#) 22. Nh3 $11) 21. Bh4 {[%emt 0:01:09]} Bc5 {[%emt 0:01:00][%cal Rc5f2]} 22. Qf4 {[%emt 0:03:41]} Bxf2+ {[%emt 0:00:17]} 23. Bxf2 {[%emt 0:00:53]} Qxf2+ {[%emt 0:00:23]} 24. Kh1 {[%emt 0:00:08]} Qxe2 {[%emt 0:00:38]} 25. Re1 {[%emt 0:00:55]} Nf2+ {[%emt 0:00:09]} 26. Kg1 {[%emt 0:00:10] [#]} Qxf3 $3 {[%emt 0:00:48] White got outplayed after the opening.   Weighted Error Value: White=1.62/Black=0.02 (flawless) .  Mistake:       	White=5     	---        OK:         	---       	Black=4      Best:        	---       	Black=1} 0-1

[Event "Oberliga Wuerttemberg 2023-24"]
[Site "Wuerttemberg"]
[Date "2024.04.14"]
[Round "9.21"]
[White "Eric, Jovana"]
[Black "Khadempour, Farhad"]
[Result "1-0"]
[ECO "C11"]
[WhiteElo "2162"]
[BlackElo "2136"]
[Annotator "RC"]
[PlyCount "55"]
[EventDate "2024.03.14"]
[EventType "team-tourn"]
[EventCountry "GER"]
[SourceTitle "playchess.com"]
[Source "ChessBase"]
[SourceQuality "1"]
[TimeControl "40/5400+30:1800+30"]

1. e4 {[%emt 0:00:03]} e6 {[%emt 0:00:03]} 2. d4 {[%emt 0:00:07]} d5 {[%emt 0:00:04]} 3. Nc3 {[%emt 0:00:08]} Nf6 {[%emt 0:00:06]} 4. e5 {[%emt 0:00:05]} Nfd7 {[%emt 0:00:07]} 5. f4 {[%emt 0:00:10]} c5 {[%emt 0:00:23]} 6. Nf3 {[%emt 0:00:11]} Nc6 {[%emt 0:00:07]} 7. Be3 {[%emt 0:00:15]} a6 {[%emt 0:00:18]} 8. a3 {[%emt 0:00:31]} b5 {[%emt 0:00:39]} 9. dxc5 {[%emt 0:00:41]} Bxc5 {[%emt 0:00:49]} 10. Bxc5 {[%emt 0:00:19]} Nxc5 {[%emt 0:00:05]} 11. b4 {[%emt 0:00:12]} Nd7 {[%emt 0:01:01]} 12. Bd3 {[%emt 0:02:36]} Qb6 {[%emt 0:03:08]} 13. Qd2 {[%emt 0:02:04]} Bb7 {[%emt 0:01:52]} 14. Ne2 {[%emt 0:06:34]} g6 {[%emt 0:03:39]} 15. c3 {[%emt 0:02:39]} a5 {[%emt 0:10:09]} 16. Rb1 {[%emt 0:01:33]} axb4 {[%emt 0:00:49]} 17. axb4 {[%emt 0:00:05]} h5 {[%emt 0:06:51]} 18. Ned4 {[%emt 0:02:17]} Nxd4 {[%emt 0:01:27]} 19. Nxd4 {[%emt 0:00:07]} Bc6 {[%emt 0:01:23]} 20. O-O {[%emt 0:01:39]} O-O {[%emt 0:01:20]} 21. Kh1 {[%emt 0:04:45]} Kg7 {[%emt 0:03:54]} 22. Rbe1 {[%emt 0:11:26]} Rg8 {[%emt 0:11:04]} 23. f5 {[%emt 0:05:23]} exf5 {[%emt 0:03:17]} 24. e6 {[%emt 0:04:29]} fxe6 {[%emt 0:10:10]} 25. Rxe6 {[%emt 0:04:05]} Rac8 {[%emt 0:02:28]} 26. Nxf5+ {[%emt 0:00:45]} Kf7 {[%emt 0:01:20]} 27. Nd4+ {[%emt 0:00:33]} Kg7 {[%emt 0:01:42]} 28. Rxg6+ {[%emt 0:00:06]} 1-0

[Event "Oberliga Wuerttemberg 2023-24"]
[Site "Wuerttemberg"]
[Date "2024.04.14"]
[Round "9.24"]
[White "Omert, Oliver"]
[Black "Naumann, Lennart"]
[Result "1-0"]
[ECO "C42"]
[WhiteElo "1980"]
[BlackElo "1714"]
[Annotator "NA RC"]
[PlyCount "41"]
[EventDate "2024.03.14"]
[EventType "team-tourn"]
[EventCountry "GER"]
[SourceTitle "playchess.com"]
[Source "ChessBase"]
[SourceQuality "1"]
[TimeControl "40/5400+30:1800+30"]

1. e4 {[%emt 0:00:11]} e5 {[%emt 0:00:06]} 2. Nf3 {[%emt 0:00:07]} Nf6 {[%emt 0:00:03]} 3. Nc3 {[%emt 0:00:08]} Bb4 {[%emt 0:01:04]} 4. Nxe5 {[%emt 0:00:34]} Qe7 {[%emt 0:03:42]} 5. Nd3 {[%emt 0:00:45]} Bxc3 {[%emt 0:10:26]} 6. dxc3 {[%emt 0:00:09]} Qxe4+ {[%emt 0:02:04]} 7. Be2 {[%emt 0:08:53]} O-O {[%emt 0:01:21]} 8. O-O {[%emt 0:00:14]} Nc6 {[%emt 0:03:04]} 9. Re1 {[%emt 0:08:32]} d6 {[%emt 0:02:30]} 10. Bf3 {[%emt 0:10:18]} Qg6 {[%emt 0:05:12]} 11. h3 {[%emt 0:11:28]} Ne5 {[%emt 0:10:18]} 12. Nxe5 {[%emt 0:02:06]} dxe5 {[%emt 0:00:07]} 13. Rxe5 {[%emt 0:00:29]} Bf5 {[%emt 0:03:00]} 14. Bxb7 {[%emt 0:12:38]} Bxc2 {[%emt 0:02:45]} 15. Qf3 {[%emt 0:05:23]} Rae8 {[%emt 0:05:29]} 16. Bf4 {[%emt 0:04:22]} Rb8 {[%emt 0:04:45]} 17. Rae1 {[%emt 0:07:10]} Nd7 {[%emt 0:04:53]} 18. Re7 {[%emt 0:05:11]} Nc5 {[%emt 0:02:44]} 19. Bd5 {[%emt 0:02:30]} Nd3 {[%emt 0:04:49]} 20. R1e3 {[%emt 0:07:34]} Rxb2 {[%emt 0:07:46]} 21. Rxf7 {[%emt 0:07:53]} 1-0